Cogmind - Beta 11 @@@ ROGUE MODE // 2022.06.27 @ 08:56:05 Player: CreepyD Result: Destroyed by Y-45 Defender with Beam Rifle Performance ------------- Evolutions (2) 1000 Regions Visited (5) 1000 Robots Destroyed (56) 280 Value Destroyed (1252) 1252 Prototype IDs (8) 160 Alien Tech Used (0) 0 Bonus (78) 78 TOTAL SCORE: 3770 Bonus ------- Follower Combat Kills 78 Cogmind --------- Core Integrity 0/550 Matter 300/300 Energy 100/100 System Corruption 4% Temperature Cool (9) Movement Core (50) Location -8/Materials Parts ------- > --- POWER (1) -------- (None) > --- PROPULSION (3) --- (None) > --- UTILITY (3) ------ Visual Processing Unit Transport Network Coupler Improved Targeting Computer > --- WEAPON (4) ------- Maul > --- INVENTORY (5) ---- Heavy Ion Engine Deuterium Engine Cooling System High-capacity Matter Pod (200) Pulse Rifle Peak State ------------ > --- POWER ------------ Heavy Ion Engine > --- PROPULSION ------- Aluminum Leg Aluminum Leg Aluminum Leg > --- UTILITY ---------- Medium Storage Unit Sensor Array Improved Targeting Computer > --- WEAPON ----------- Heavy EM Pulse Gun Light EM Pulse Cannon Heavy Assault Rifle Heavy Assault Rifle > --- INVENTORY -------- Light Ion Engine Heavy Ion Engine Aluminum Leg Cooling System High-capacity Matter Pod Transport Network Coupler Heavy Assault Rifle [Rating: 19] Favorites ----------- Power Heavy Ion Engine Engine Heavy Ion Engine Propulsion Aluminum Leg Treads Light Treads Leg Aluminum Leg Wheel Wheel Utility Medium Storage Unit Device Sensor Array Storage Medium Storage Unit Processor Improved Targeting Computer Protection Light Armor Plating Weapon Heavy Assault Rifle Energy Gun Medium Laser Energy Cannon Light EM Pulse Cannon Ballistic Gun Heavy Assault Rifle Special Weapon Mining Laser Impact Weapon Maul Build | -11 -10 -10 -9 -9 -8 ------- Run | Scr Mat Min Mat Sto Mat Slots Evolved 4 | . . . 2 . 2 Power . | . . . . . . Propulsion 1 | . . . . . 1 Utility 1 | . . . 1 . . Weapon 2 | . . . 1 . 1 Parts Attached 54 | 6 3 4 2 30 9 Power 7 | 1 1 . . 5 . Engine 7 | 1 1 . . 5 . Core . | . . . . . . Reactor . | . . . . . . Propulsion 17 | 2 1 2 . 9 3 Treads 3 | . . . . 3 . Leg 9 | . . 2 . 4 3 Wheel 5 | 2 1 . . 2 . Hover . | . . . . . . Flight . | . . . . . . Utility 13 | 1 1 1 1 6 3 Device 4 | . 1 . . 3 . Storage 2 | 1 . 1 . . . Processor 4 | . . . 1 1 2 Hackware . | . . . . . . Protection 3 | . . . . 2 1 Artifact . | . . . . . . Weapon 17 | 2 . 1 1 10 3 Energy Gun 7 | 2 . . . 3 2 Energy Cannon 3 | . . . . 3 . Ballistic Gun 5 | . . . 1 4 . Ballistic Cannon . | . . . . . . Launcher . | . . . . . . Special Weapon 1 | . . 1 . . . Impact Weapon 1 | . . . . . 1 Slashing Weapon . | . . . . . . Piercing Weapon . | . . . . . . Special Melee Weapon . | . . . . . . Unidentified Prototypes 2 | . . . . 2 . Corrupted Parts 3 | . . 1 . 1 1 System Corruption 6 | . . 1 . 1 4 Parts Lost 31 | . 3 4 . 12 12 Power 4 | . 1 . . 2 1 Propulsion 11 | . 1 2 . 3 5 Utility 5 | . . . . 4 1 Weapon 11 | . 1 2 . 3 5 Highest Loss Streak 7 | . 2 4 . 4 7 To Critical Strikes . | . . . . . . Average Slot Usage (%) 77 | . 85 78 71 77 74 Engine 10 | . 14 14 11 10 6 Treads 1 | . . . . 2 . Leg 10 | . . 8 22 6 20 Wheel 4 | . 25 17 . 2 . Device 11 | . 2 14 11 14 6 Storage 10 | . 14 14 11 11 7 Processor 3 | . . . 7 1 10 Energy Gun 6 | . 28 9 . 4 4 Energy Cannon 4 | . . . . 6 4 Ballistic Gun 12 | . . . 9 17 10 Naked Turns . | . . . . . . Heaviest Build 32 | 14 14 16 15 31 32 Greatest Support 40 | 20 20 20 20 40 30 Greatest Overweight (x) 8 | . 1 . . 8 3 Average Overweight (x) . | . . . . 1 . Largest Inventory Capacity 10 | 8 8 10 10 10 10 Average Capacity 9 | 7 8 9 10 10 9 Most Carried 10 | 4 5 6 3 10 8 Average Carried 4 | 1 3 4 2 4 6 Final Capacity 10 | 8 8 10 10 10 5 Final Carried 8 | 4 5 2 3 8 5 Class Distribution -------------------- 37% | Mutant 25% | Scavenger-Skirmisher 22% | Scavenger-Gunner 11% | Scavenger-Mutant 3% | Scavenger-Tank Dominant Class ---------------- Mutant | -10/Materials Mutant | -10/Mines Scavenger-Mutant | -9/Materials Scavenger-Skirmisher | -9/Storage Scavenger-Gunner | -8/Materials Resources | -11 -10 -10 -9 -9 -8 ----------- Run | Scr Mat Min Mat Sto Mat Matter Collected 891 | 260 15 15 . 513 88 Remotely . | . . . . . . Salvage Created 2109 | 163 287 45 . 1209 405 Parts 126 | 9 20 1 . 79 17 Haulers Intercepted 5 | . . . . 4 1 Recyclers Shooed 3 | . 1 . . 2 . Parts Field Recycled . | . . . . . . Retrieved Matter . | . . . . . . Parts Self-Destructed . | . . . . . . Prevented . | . . . . . . Kills | -11 -10 -10 -9 -9 -8 ------- Run | Scr Mat Min Mat Sto Mat Combat Hostiles Destroyed 36 | . 6 1 . 24 5 Guns 28 | . 6 1 . 19 2 Cannons 6 | . . . . 5 1 Classes Destroyed 9 | 2 3 . . 3 1 Worker 5 | . . . . 2 3 Tunneler 3 | 3 . . . . . Hauler 5 | . . . . 4 1 Recycler 3 | 1 1 . . 1 . Watcher 4 | . 1 . . 2 1 Swarmer 11 | . 3 . . 8 . Grunt 18 | . 3 1 . 11 3 Sentry 6 | . . . . 5 1 Hunter 1 | . . . . . 1 Best Kill Streak 9 | 4 3 1 . 9 5 Combat Bots Only 7 | . 3 1 . 7 2 Max Kills in Single Turn 2 | 1 1 1 . 2 1 Gunslinging 1 | . . . . 1 . Exploded . | . . . . . . Melee . | . . . . . . Uniques/NPCs Destroyed . | . . . . . . Combat | -11 -10 -10 -9 -9 -8 -------- Run | Scr Mat Min Mat Sto Mat Damage Taken 3450 | . 396 178 . 1254 1622 Core 876 | . 74 27 . 221 554 Absorbed by Shields . | . . . . . . Core Remaining (%) 67 | 100 . 59 . 44 . Volleys Fired 157 | 7 22 5 . 100 23 Largest 4 | 2 2 2 . 3 4 Hottest 150 | 90 90 150 . 119 147 Shots Fired 327 | 14 44 6 . 194 69 Gun 300 | 14 44 5 . 177 60 Cannon 26 | . . . . 17 9 Launcher . | . . . . . . Special 1 | . . 1 . . . Kinetic 143 | . . . . 106 37 Thermal 106 | 7 22 6 . 71 . Explosive . | . . . . . . Electromagnetic 78 | 7 22 . . 17 32 Robot Hit Streak 12 | 5 8 4 . 12 8 Robot Miss Streak 6 | 1 3 1 . 5 6 Penetration Max . | . . . . . . Secondary Targets 5 | . 1 . . 4 . Max Gunslinging Chain 1 | . 1 . . 1 . Shots Hit Robots 210 | 10 28 4 . 113 55 Core Hits 83 | 5 13 3 . 46 16 Critical Kills 1 | . . . . 1 . Critical Parts Destroyed 1 | . . . . . 1 Critical Strikes 13 | . 2 1 . 7 3 Burn 7 | . 1 1 . 5 . Destroy 1 | . . . . 1 . Corrupt 4 | . 1 . . 1 2 Smash 1 | . . . . . 1 Melee Attacks 7 | . . . . . 7 Impact 7 | . . . . . 7 Slashing . | . . . . . . Piercing . | . . . . . . Sneak Attacks 4 | . . . . . 4 Combat Hostiles . | . . . . . . Follow-up Attacks . | . . . . . . Damage Inflicted 3675 | 135 444 75 . 1782 1239 Guns 2682 | 135 397 50 . 1464 636 Cannons 418 | . . . . 318 100 Explosions 47 | . 47 . . . . Melee 443 | . . . . . 443 Ramming 61 | . . 1 . . 60 Kinetic 1282 | . . . . 918 364 Thermal 855 | 37 198 74 . 546 . Explosive . | . . . . . . Electromagnetic 1034 | 98 246 . . 318 372 Impact 443 | . . . . . 443 Slashing . | . . . . . . Piercing . | . . . . . . Highest Corruption 4 | . . 1 . 1 4 Average Corruption 2 | . . 1 . 1 4 Corruption Purged . | . . . . . . Corruption Blocked . | . . . . . . Effects 4 | . . . . 3 1 Message Errors 1 | . . . . 1 . Data Loss (minor) 2 | . . . . 1 1 Weapon Failures 1 | . . . . 1 . Overload Shots . | . . . . . . Overflow Damage 239 | . . . . . 239 Projectiles . | . . . . . . Explosions . | . . . . . . Melee 239 | . . . . . 239 Knockbacks . | . . . . . . Impact . | . . . . . . Kinetic . | . . . . . . Secondary . | . . . . . . Self-Inflicted Damage . | . . . . . . Shots . | . . . . . . Rammed . | . . . . . . Targets Rammed 25 | . . 1 . . 24 Kicked 25 | . . 1 . . 24 Crushed . | . . . . . . Highest Temperature 357 | 210 258 154 . 340 357 Average Temperature 119 | 106 95 71 . 120 153 Received Heat Transfer 1245 | . 114 117 . 330 684 Effects 1 | . . . . . 1 Energy Bleed 1 | . . . . . 1 Siege Activations . | . . . . . . Robots Corrupted 2 | . . . . . 2 Combat Hostiles 2 | . . . . . 2 Parts Fried 5 | . . . . . 5 Impact Corruptions 4 | . . . . . 4 Robots Melted . | . . . . . . Combat Hostiles . | . . . . . . Parts Melted 6 | . 2 . . 4 . Heat Transferred 2719 | 111 618 272 . 1718 . Parts Sabotaged . | . . . . . . Parts Stolen . | . . . . . . Parts Stripped . | . . . . . . Power Chain Reactions 1 | . 1 . . . . Missiles Intercepted . | . . . . . . Alert | -11 -10 -10 -9 -9 -8 ------- Run | Scr Mat Min Mat Sto Mat Peak Influence 410 | 20 196 72 20 365 410 Initial 128 | . 13 72 20 8 128 Average 165 | 5 117 64 20 184 236 Maximum Alert Level 2 | . . . . 1 2 Low Security (%) 58 | 100 100 100 100 44 43 Level 1 41 | . . . . 55 55 Level 2 . | . . . . . . Level 3 . | . . . . . . Level 4 . | . . . . . . Level 5 . | . . . . . . High Security . | . . . . . . Max Security . | . . . . . . Squads Dispatched 9 | . . . . 6 3 Investigation . | . . . . . . Extermination . | . . . . . . Reinforcement 4 | . . . . 1 3 Assault 2 | . . . . 2 . Garrison 3 | . . . . 3 . Intercept . | . . . . . . Searches Triggered . | . . . . . . Construction Impeded . | . . . . . . Haulers Reinforced . | . . . . . . Active Scanning Responses . | . . . . . . Cargo Convoy Interrupts . | . . . . . . Stealth | -11 -10 -10 -9 -9 -8 --------- Run | Scr Mat Min Mat Sto Mat Distress Signals 8 | . 1 . . 4 3 Communications Jammed . | . . . . . . Distress Signals . | . . . . . . Times Spotted 74 | . 13 2 . 33 26 Peak Tracking Total 10 | . 5 2 . 10 9 Tactical Retreats 8 | . 1 . . 2 5 Traps | -11 -10 -10 -9 -9 -8 ------- Run | Scr Mat Min Mat Sto Mat Traps Triggered 1 | . . . . 1 . Indirectly . | . . . . . . Trap Hack Attempts . | . . . . . . Triggered . | . . . . . . Disarmed . | . . . . . . Reprogrammed . | . . . . . . Reused . | . . . . . . Traps Extracted . | . . . . . . Installed . | . . . . . . Triggered 1 | . . . . . 1 Machines | -11 -10 -10 -9 -9 -8 ---------- Run | Scr Mat Min Mat Sto Mat Machines Disabled 1 | . . . . . 1 Max in Single Turn 1 | . . . . . 1 Machines Sabotaged . | . . . . . . Garrisons Compromised . | . . . . . . Overloaded Fab Kills . | . . . . . . Hacking | -11 -10 -10 -9 -9 -8 --------- Run | Scr Mat Min Mat Sto Mat Machines Accessed 11 | . 1 . 1 6 3 Terminals 8 | . . . 1 5 2 Fabricators . | . . . . . . Repair Stations . | . . . . . . Recycling Units 2 | . 1 . . 1 . Scanalyzers 1 | . . . . . 1 Garrison Access . | . . . . . . Total Hacks 29 | . 2 . 5 14 8 Successful 13 | . . . 2 6 5 Failed 16 | . 2 . 3 8 3 Catastrophic 1 | . . . . . 1 Database Lockouts . | . . . . . . Manual 9 | . . . 3 5 1 Terminals 21 | . . . 5 12 4 Fabricators . | . . . . . . Repair Stations . | . . . . . . Recycling Units 4 | . 2 . . 2 . Scanalyzers 4 | . . . . . 4 Garrison Access . | . . . . . . Terminal Hacks 7 | . . . 2 4 1 Prototype ID Bank 3 | . . . 1 2 . Open Door 1 | . . . . 1 . Emergency Access Points 1 | . . . . . 1 Zone Layout 2 | . . . 1 1 . Fabricator Hacks . | . . . . . . Repair Station Hacks . | . . . . . . Recycling Unit Hacks 2 | . . . . 2 . Retrieve Components 2 | . . . . 2 . Scanalyzer 4 | . . . . . 4 Insert Component 2 | . . . . . 2 Analyze 2 | . . . . . 2 Garrison Access Hacks . | . . . . . . Unauthorized Hacks . | . . . . . . Terminals . | . . . . . . Fabricators . | . . . . . . Repair Stations . | . . . . . . Recycling Units . | . . . . . . Scanalyzers . | . . . . . . Garrison Access . | . . . . . . Data Cores Recovered . | . . . . . . Used . | . . . . . . Hacking Detections 8 | . 1 . 1 4 2 Full Trace Events 1 | . . . . 1 . Feedback Events . | . . . . . . Feedback Blocked . | . . . . . . Robot Schematics Acquired . | . . . . . . Robots Built . | . . . . . . Authchips . | . . . . . . Time . | . . . . . . Total Robot Build Rating . | . . . . . . Part Schematics Acquired 1 | . . . . . 1 Parts Built . | . . . . . . Authchips . | . . . . . . Time . | . . . . . . Total Part Build Rating . | . . . . . . Parts Repaired . | . . . . . . Time . | . . . . . . Parts Recycled . | . . . . . . Recycled Matter . | . . . . . . Retrieved Matter . | . . . . . . Retrieved Components . | . . . . . . Parts Scanalyzed 2 | . . . . . 2 Part Schematics Acquired 1 | . . . . . 1 Parts Damaged . | . . . . . . Bothacking | -11 -10 -10 -9 -9 -8 ------------ Run | Scr Mat Min Mat Sto Mat Used RIF Installer . | . . . . . . Robots Hacked . | . . . . . . Non-combat . | . . . . . . Combat . | . . . . . . Robot Hacks Applied . | . . . . . . Relay Couplers Released . | . . . . . . Fabnet Peak Effective % . | . . . . . . Robots Rewired . | . . . . . . Allies Hacked . | . . . . . . Hacks Repelled . | . . . . . . Allies | -11 -10 -10 -9 -9 -8 -------- Run | Scr Mat Min Mat Sto Mat Total Allies 2 | . . . . 2 . Largest Group 2 | . . . . 2 . Highest-Rated Group 62 | . . . . 62 . Highest-Rated Ally 31 | . . . . 31 . Total Orders 1 | . . . . 1 . EXPLORE 1 | . . . . 1 . Ally Attacks 20 | . . . . 20 . Total Damage 397 | . . . . 397 . Kills 3 | . . . . 3 . Allies Corrupted . | . . . . . . Allies Melted . | . . . . . . Intel | -11 -10 -10 -9 -9 -8 ------- Run | Scr Mat Min Mat Sto Mat Robot Analysis Total . | . . . . . . Derelict Logs Recovered 1 | . . 1 . . . Drone Launches 1 | . . . . 1 . Drone Recoveries 1 | . . . . 1 . Exploration | -11 -10 -10 -9 -9 -8 ------------- Run | Scr Mat Min Mat Sto Mat Turns Passed 1993 | 73 172 126 124 1083 415 Spaces Moved 875 | 46 93 105 99 319 213 Core 102 | 4 . . . 14 84 Treads 52 | . . . . 52 . Legs 449 | . . 31 99 190 129 Wheels 272 | 42 93 74 . 63 . Hover . | . . . . . . Flight . | . . . . . . Fastest Speed 50 | 50 80 80 120 85 50 Average Speed 149 | 77 81 91 120 226 121 Slowest Speed 450 | 80 95 120 120 450 260 Overloaded Moves . | . . . . . . Propulsion Burnouts . | . . . . . . Robots Hopped . | . . . . . . Cave-ins Triggered . | . . . . . . Exploration Rate (%) 23 | 4 27 23 11 50 24 Regions Visited 5 Branch Regions 2 Pre-discovered Areas 1 | . . 1 . . . Known Exits Taken . | . . . . . . Unknown Exits Taken 5 | 1 1 1 1 1 . Scrap Searched . | . . . . . . Spaces Dug . | . . . . . . Terrain Destroyed 2 | . 2 . . . . Melee . | . . . . . . Projectile . | . . . . . . AOE 2 | . 2 . . . . Terrain Rammed . | . . . . . . Walls Destroyed . | . . . . . . Machines Disabled . | . . . . . . Actions | -11 -10 -10 -9 -9 -8 --------- Run | Scr Mat Min Mat Sto Mat Total 1263 | 69 145 126 104 516 303 Wait 84 | 1 24 10 1 31 17 Move 870 | 45 92 104 98 318 213 Hop . | . . . . . . Pick Up 52 | 10 4 1 3 28 6 Fast Attach 2 | . . . . . 2 Attach 38 | 6 3 3 2 18 6 Detach 1 | . . . . 1 . Swap 14 | . . 1 . 12 1 Drop 13 | . . 1 . 8 4 Fire 157 | 7 22 5 . 100 23 Melee 7 | . . . . . 7 Ram . | . . . . . . Kick 25 | . . 1 . . 24 Crush . | . . . . . . Escape Stasis . | . . . . . . Rewire . | . . . . . . Trap . | . . . . . . Miscellaneous . | . . . . . . Route ------- -11/Scrapyard -10/Materials -10/Mines -9/Materials -9/Storage -8/Materials History --------- Turn | Location | Event 26 | -11/Scrapyard | Discovered new exit (range 12) 74 | -11/Scrapyard | Entered Materials 201 | -10/Materials | Discovered new exit (range 9) 246 | -10/Materials | Entered Mines 302 | -10/Mines | Build established: Mutant 357 | -10/Mines | Learned location of Zion (-6) 362 | -10/Mines | Lost 4 parts (2n2w) 366 | -10/Mines | Discovered new exit (range 6) 372 | -10/Mines | Entered Materials 372 | -9/Materials | Evolved 2 slots: Utility x1, Weapon x1 492 | -9/Materials | Discovered new exit (range 3) 496 | -9/Materials | Entered Storage 596 | -9/Storage | Garrison activated, responded to threat 608 | -9/Storage | Lost 4 parts (1p1n2u) 809 | -9/Storage | Garrison activated, responded to threat 845 | -9/Storage | Core integrity fell below 50% 865 | -9/Storage | Destroyed 7 combat bots 873 | -9/Storage | Lost 3 parts (1u2w) 910 | -9/Storage | Garrison activated, responded to threat 1276 | -9/Storage | Build established: Scavenger-Skirmisher 1427 | -9/Storage | Discovered new exit (range 7) 1475 | -9/Storage | Met a pair of Derelict thieves 1579 | -9/Storage | Entered Materials 1579 | -8/Materials | Evolved 2 slots: Propulsion x1, Weapon x1 1809 | -8/Materials | Build established: Scavenger-Gunner 1879 | -8/Materials | Lost 7 parts (2n5w) 1898 | -8/Materials | Core integrity fell below 50% 1944 | -8/Materials | Core integrity fell below 20% 1945 | -8/Materials | Lost 5 parts (1p3n1u) 1994 | -8/Materials | Destroyed by Y-45 Defender with Beam Rifle Last Messages --------------- 01978_ Imp. Sensor Array fried. 01978_ Visual Processing Unit fried. 01978_ W-25 Informer destroyed. 01978_ ALERT: Hostiles spotted, dispatching reinforcements to Terminal M005. 01979_ Acquired 20 matter. 01981_ Sneak attack on K-01 Serf. 01981_ K-01 Serf destroyed. 01982_ K-01 Serf collects debris. 01984_ Sneak attack on K-01 Serf. 01984_ Destroyed Wheel. 01984_ K-01 Serf system corrupted by crushing effect. 01985_ K-01 Serf system terminally corrupted. 01987_ Sneak attack on K-01 Serf. 01987_ Destroyed Wheel. 01987_ K-01 Serf system corrupted by crushing effect. 01987_ Lgt. Ion Engine fried. 01987_ Sml. Matter Pod fried. 01987_ K-01 Serf destroyed. 01988_ K-01 Serf cleans the Nuclear Reactor. Map ----- +----------------------------------------------------+ | ?????????????????????????????????????????????????? | | ?????????????????????????????????????????????????? | | ?????????????????????????????????????????????????? | | ?????????????????????????????????????????????????? | | ?????????????????????????????????????????????????? | | ?????????????????????????????????????????????????? | | ?????????????????????????????????????????????????? | | ?????????????????????????????????????????????????? | | ?????????????????????????????????????????????????? | | ?????????????????????????????????????????????????? | | ?????????????????????????#???????????????????????? | | ????????????????????????? ???????????????????????? | | ????????????????????????? ???????????????????????? | | ????????????????????????u ???????????????????????? | | ????????????????????????" ???????????????????????? | | ????????????????????????" ???????????????????????? | | ????????????????????????" #??????????????????????? | | ???????????????????????? #??????????????????????? | | ???????????????????????? #??????????????????????? | | ????????????????????????#k#??????????????????????? | | ????????????????????????#u#??????????????????????? | | ???????????????#????????#!#??????????????????????? | | ???????????????# #####??#u#??????????????????????? | | ???????????????# ?#!#??????????????????????? | | ???????????????# ?#!#?#####????????????????? | | ???????????????# === #@###"T"####???#?????????? | | ???????????????# === #Y%= #?? #?????????? | | ???????????????# == +!!* a ! ###a##### ??? | | ???????????????# ""#=% T" " ??? | | ???????????????# T"### "T??? | | ???????????????+ "???# ?? | | ???????????????# ???# [!! !#########?????? | | ???????????????############! [!! #?????????????? | | ?????????????? !! #?????????????? | | ?????????????? [##????????????? | | ?????????????? # ????????????? | | ???????????????### ########### +?????????????? | | ?????????????????# ???########## #?????????????? | | ??????????????????????# # ###########???? | | ??????????????????????# """ # g # #???? | | ??????????????????????# """ # # *#???? | | ??????????????????????#[ """ # # #???? | | ??????????????????????# # # """ #???? | | ??????????????????????# "" %%+% + "" """ #???? | | ??????????????????????# """ # # S"" """ #???? | | ??????????????????????# "" # # "" #???? | | ??????????????????????# # # #???? | | ??????????????????????#####+#### ###########???? | | ????????????????????????# # #?????????????? | | ????????????????????????# # #?????????????? | +----------------------------------------------------+ Best States ------------- Heat Dissipation 50 Energy Generation 14 Energy Capacity 280 Matter Stores 300 Matter Capacity 300 Sight Range 18 Robot Scan Range 14 Terrain Scan Density 10 Armor Coverage 225 Evasion (%) 55 Targeting Accuracy 6 Recoil Reduction 2 Salvage Targeting 1 Item Schematics ----------------- Transport Network Coupler | -8/Materials | Scanalyzed Robot Schematics ------------------ None Fabricated ------------ Nothing Alien Tech Used ----------------- None Achievements -------------- None Challenges ------------ None Game ------ Seed ColdBottomlessNetwork Manual? 0 Play Time 00:27:59 Cumulative 135.7 hours Start 2022.06.27 @ 08:18:15 End 2022.06.27 @ 08:56:05 Sessions 1 Manual Loads 0 Difficulty Rogue Special Mode None Game No. 129 Rogue 128 Adventurer 1 Explorer 0 Win Type - Total 1 Types 1/0/0/0/0/0/0/0/0 Lore% 45 Gallery% 63 Achievement% 47 Wizard Run 0 Options --------- ASCII 0 Keyboard 0 Movement Mouse Keybinds 0 Fullscreen 0 Font 18/SmallcapsGlow Map View 76x50 Tactical HUD 1 Map Filters NONE Filters NONE Steam X RUN: 140df6ba-1178-4445-9610-552c3acdc3e4